[Event "3rd Sunway Formentera-A 2024"]
[Site "Formentera"]
[Date "2024.04.17"]
[Round "8.12"]
[White "Adarsh Tripathi"]
[Black "Tsatsalashvili, Keti"]
[Result "1-0"]
[ECO "B28"]
[WhiteElo "2304"]
[BlackElo "2315"]
[Annotator "TA"]
[PlyCount "93"]
[EventDate "2024.04.03"]
[EventType "swiss"]
[EventCountry "ESP"]
[SourceTitle "playchess.com"]
[Source "ChessBase"]
[SourceQuality "1"]
[TimeControl "40/5400+30:1800+30"]

{[%evp 10,93,31,26,64,51,50,12,44,16,97,87,122,77,54,0,0,0,14,0,28,24,32,54,59,61,109,120,115,108,137,155,233,232,239,200,204,135,139,139,183,176,191,197,183,196,212,199,206,210,212,213,239,231,237,198,248,244,343,373,387,413,396,412,468,400,471,459,491,485,730,729,766,733,29983,29984,29984,29985,29985,29986,29992,29993,29993,29994,29998,29999]} 1. e4 {[%emt 0:03:36]} c5 {[%emt 0:00:11]} 2. Nc3 {[%emt 0:00:06]} a6 {[%emt 0:00:20]} 3. Nge2 {[%emt 0:00:07]} b5 {[%emt 0:00:31]} 4. d4 {[%emt 0:00:07]} cxd4 {[%emt 0:02:05]} 5. Nxd4 {[%emt 0:00:06]} Bb7 {[%emt 0:00:19]} 6. Bd3 {[%emt 0:00:06]} d6 {[%emt 0:02:06]} 7. O-O {[%emt 0:00:31]} Nf6 {[%emt 0:00:15]} 8. Bg5 {[%emt 0:00:43] Black must now prevent Bxf6.} Nbd7 {[%emt 0:01:57] The position is equal.} 9. a4 {[%emt 0:02:12]} bxa4 {[%emt 0:07:04]} (9... b4 $11 {remains equal.} 10. Nd5 Nxd5 11. exd5 Bxd5) 10. Rxa4 $16 {[%emt 0:01:04]} (10. Nxa4 e6 $11) 10... Nc5 {[%emt 0:03:21]} 11. Ra1 {[%emt 0:04:46]} e6 {[%emt 0:06:42][%cal Of8e7]} 12. Bc4 {[%emt 0:01:23]} ({White should play} 12. Nd5 $14) 12... Be7 $1 $11 {[%emt 0:00:55]} 13. f3 {[%emt 0:19:32]} O-O {[%emt 0:15:43]} 14. Be3 {[%emt 0:03:18]} d5 {[%emt 0:05:54]} 15. exd5 {[%emt 0:00:07]} Nxd5 {[%emt 0:00:17]} 16. Bxd5 {[%emt 0:01:32]} Bxd5 {[%emt 0:05:21]} 17. Nf5 $1 {[%emt 0:00:17]} Bc4 {[%emt 0:05:49]} (17... Re8 $14) 18. Qxd8 $1 $16 {[%emt 0:00:13]} Bxd8 {[%emt 0:00:32] A strong pair of Bishops. Black is weak on the dark squares} 19. Bxc5 {[%emt 0:00:07]} Bxf1 {[%emt 0:01:46] [#]} 20. Ne3 {[%emt 0:00:19] White has more active pieces.} (20. Bxf8 Kxf8 21. g4 Bh3 $11) 20... Re8 {[%emt 0:02:02]} (20... Bxg2 $16 21. Kxg2 Re8) 21. Kxf1 $18 {[%emt 0:01:59]} Bf6 {[%emt 0:00:10]} 22. Ra3 {[%emt 0:01:07]} Rec8 {[%emt 0:03:36]} 23. b4 {[%emt 0:03:06] Hoping for Na4.} a5 {[%emt 0:02:46]} 24. Ne4 {[%emt 0:00:10] b5 is the strong threat.} Bd8 {[%emt 0:03:20] [#]} 25. c3 $1 {[%emt 0:02:20]} f5 {[%emt 0:04:24] aiming for ...axb4.} 26. Nd6 {[%emt 0:00:38]} axb4 {[%emt 0:03:38]} 27. Rxa8 {[%emt 0:00:08]} (27. Nxc8 $2 {is the wrong capture.} bxa3 28. Bxa3 Rxa3 $19) ({Don't play} 27. Bxb4 $6 Rxa3 28. Nxc8 Ra2 $16) 27... Rxa8 {[%emt 0:00:03]} 28. cxb4 {[%emt 0:00:07]} ({Resist} 28. Bxb4 $6 Ra2 $16) 28... Bc7 {[%emt 0:01:13]} 29. Nec4 {[%emt 0:01:08]} Ra1+ {[%emt 0:00:58]} 30. Ke2 {[%emt 0:00:37]} Ra2+ {[%emt 0:00:04]} 31. Nd2 {[%emt 0:00:25]} g5 {[%emt 0:00:47]} 32. Kd3 {[%emt 0:00:27]} h5 {[%emt 0:00:24]} (32... Ra3+ $142 33. Ke2 Ra6) 33. h3 {[%emt 0:00:29]} h4 {[%emt 0:00:50]} (33... Bb8 $142 34. Kc3 g4 35. hxg4 fxg4 36. fxg4 Ra3+ 37. Kc4 hxg4) 34. N6c4 {[%emt 0:00:55]} Kf7 {[%emt 0:02:50]} 35. b5 {[%emt 0:00:17]} Ke8 {[%emt 0:01:09]} 36. b6 {[%emt 0:00:21]} Bb8 {[%emt 0:00:35]} 37. Be3 {[%emt 0:00:06]} Kd7 {[%emt 0:03:07]} 38. Bxg5 {[%emt 0:01:00]} Bg3 {[%emt 0:00:53]} 39. Be3 {[%emt 0:00:13]} Kc6 {[%emt 0:00:19]} (39... Bd6 $142 40. Nxd6 Kxd6) 40. f4 {[%emt 0:00:00]} Be1 {[%emt 0:00:00]} 41. Nf3 {[%emt 0:03:22]} Bf2 {[%emt 0:23:26]} 42. Nfe5+ {[%emt 0:00:10] White mates.} Kb7 {[%emt 0:11:03]} 43. Nd6+ {[%emt 0:00:04]} Ka6 {[%emt 0:07:03]} 44. b7 {[%emt 0:00:05]} Ra3+ {[%emt 0:05:50]} 45. Kc4 {[%emt 0:00:27]} Ra4+ {[%emt 0:00:45]} 46. Kb3 {[%emt 0:00:10]} Ra1 {[%emt 0:00:28]} 47. b8=N+ {[%emt 0:00:59] Weighted Error Value: White=0.10 (very precise) /Black=0.42.  Mistake:       	White=1     	Black=6      Inaccurate:     	White=4     	Black=3      OK:         	White=19    	Black=11     Best:        	White=2     	Black=1      Strong:       	White=3     	Black=1} 1-0

[Event "3rd Sunway Formentera-A 2024"]
[Site "Formentera"]
[Date "2024.04.17"]
[Round "8.13"]
[White "Torres Samper, Rafael"]
[Black "Vargas Drechsler, Carlos"]
[Result "1/2-1/2"]
[ECO "C47"]
[WhiteElo "1918"]
[BlackElo "1878"]
[Annotator "TA"]
[PlyCount "80"]
[EventDate "2024.04.03"]
[EventType "swiss"]
[EventCountry "ESP"]
[SourceTitle "playchess.com"]
[Source "ChessBase"]
[SourceQuality "1"]
[TimeControl "40/5400+30:1800+30"]

{[%evp 10,80,-6,-6,0,0,0,7,14,5,7,0,11,-60,-37,-104,-50,-63,-50,-82,-13,-11,-8,0,0,-4,23,-16,0,0,0,0,0,0,0,-10,0,-19,-20,-19,-19,-33,-12,-12,-10,-15,-14,-11,0,0,0,0,0,-629,0,0,0,0,0,0,0,0,0,-1368,0,0,0,0,0,0,0,0,0]} 1. e4 {[%emt 0:01:14]} e5 {[%emt 0:00:31]} 2. Nf3 {[%emt 0:00:07]} Nc6 {[%emt 0:00:11]} 3. Nc3 {[%emt 0:00:42]} Nf6 {[%emt 0:00:14]} 4. d4 {[%emt 0:00:37]} exd4 {[%emt 0:00:13]} 5. Nd5 {[%emt 0:00:21]} Be7 {[%emt 0:00:50]} 6. Nxd4 {[%emt 0:02:18]} Nxd4 {[%emt 0:03:01]} 7. Qxd4 {[%emt 0:00:11]} Nxd5 {[%emt 0:00:38]} 8. Qxd5 {[%emt 0:10:16]} O-O {[%emt 0:00:41]} 9. Be3 {[%emt 0:00:29]} d6 {[%emt 0:01:39]} 10. O-O-O {[%emt 0:04:27]} Be6 {[%emt 0:06:13]} 11. Qh5 {[%emt 0:01:37]} ({Better is} 11. Qxb7 $11 a5 12. a3) 11... Bf6 {[%emt 0:06:33][%cal Oc7c5]} 12. Bd4 {[%emt 0:06:50]} ({White should play} 12. Kb1 $15) 12... Bxd4 {[%emt 0:06:00]} (12... Bxa2 $17 {...Bg5+ is the strong threat.} 13. b3 Bxd4 14. Rxd4 Qf6) 13. Rxd4 $15 {[%emt 0:00:07]} Qf6 {[%emt 0:01:10]} (13... Bxa2 14. b3 $11) 14. Rd2 {[%emt 0:11:10]} g6 {[%emt 0:07:51]} (14... Bxa2 $17 {With the idea ...a5.} 15. Qa5 Be6) 15. Qa5 $11 {[%emt 0:03:03]} b6 {[%emt 0:01:19]} 16. Qa4 {[%emt 0:00:04]} Rfd8 {[%emt 0:04:40]} 17. Bc4 {[%emt 0:01:58]} a6 {[%emt 0:07:29] White must now prevent ...b5.} 18. Qc6 {[%emt 0:53:59]} Bxc4 {[%emt 0:04:11]} 19. Qxc4 {[%emt 0:00:00]} Qe6 {[%emt 0:01:22]} 20. Qd5 {[%emt 0:00:00]} (20. Qxc7 $2 Qxa2 (20... Qxe4 21. f3 $14) 21. Rdd1 Qa1+ 22. Kd2 Qxb2 $19) 20... Qxd5 {[%emt 0:00:46]} 21. Rxd5 {[%emt 0:00:00][%mdl 4096] Endgame. KRR-KRR} Re8 {[%emt 0:01:36]} 22. Re1 {[%emt 0:00:00]} Re7 {[%emt 0:03:37]} 23. Kd2 {[%emt 0:00:00]} Rae8 {[%emt 0:00:51]} 24. f3 {[%emt 0:00:00] [#]} f5 $1 {[%emt 0:01:20]} 25. Kd3 {[%emt 0:00:00]} (25. Rd4 Kf7) 25... fxe4+ {[%emt 0:02:36]} 26. Rxe4 {[%emt 0:00:00]} Rxe4 {[%emt 0:00:18]} 27. fxe4 $15 {[%emt 0:00:00] KR-KR} Kf7 {[%emt 0:01:03]} 28. c4 {[%emt 0:00:00]} Kf6 {[%emt 0:00:37]} 29. b4 {[%emt 0:00:00]} Re5 {[%emt 0:04:03]} 30. Rxe5 {[%emt 0:00:00]} Kxe5 $11 {[%emt 0:00:34] KP-KP} 31. g3 $2 {[%emt 0:00:00][%mdl 8192] [#]} (31. a4 $11) 31... c5 $2 {[%emt 0:03:10]} (31... b5 $1 $19 32. c5 dxc5 33. bxc5 c6) 32. b5 {[%emt 0:00:00]} axb5 {[%emt 0:07:20]} 33. cxb5 {[%emt 0:00:00]} c4+ {[%emt 0:00:36]} 34. Kxc4 {[%emt 0:00:00] And now a4 would win.} Kxe4 {[%emt 0:00:14]} 35. a4 {[%emt 0:00:00][%cal Oa4a5] Strongly threatening a5!} d5+ {[%emt 0:00:13]} 36. Kc3 $2 {[%emt 0:01:05][%mdl 8192] [#]} (36. Kb3 $11 Ke5 37. a5 bxa5 38. Ka4) 36... Ke3 $2 {[%emt 0:02:11]} ({Black should try} 36... d4+ $1 $19 37. Kb2 Kd5) 37. Kc2 $1 {[%emt 0:00:42] The position is equal.} Ke2 $1 {[%emt 0:00:47]} ({Don't blunder} 37... d4 $2 38. Kd1 $18) 38. Kc3 {[%emt 0:00:15] White threatens Kd4 and mate.} Ke3 {[%emt 0:00:19]} 39. Kc2 $1 {[%emt 0:00:15]} Ke2 $1 {[%emt 0:00:36] ( -> ...d4)} ({But not} 39... d4 $2 40. Kd1 $18) 40. Kc3 {[%emt 0:00:00] White wants to mate with Kd4.} Ke3 {[%emt 0:00:00] Weighted Error Value: White=0.54/Black=0.33.  Loses game:     	White=2     	---        Missed win:     	---       	Black=2      Mistake:       	White=2     	Black=2      Inaccurate:     	White=1     	Black=1      OK:         	White=11    	Black=7      Best:        	White=1     	Black=3      Strong:       	White=2     	Black=1} 1/2-1/2

[Event "3rd Sunway Formentera-A 2024"]
[Site "Formentera"]
[Date "2024.04.18"]
[Round "9.1"]
[White "Donchenko, Alexander"]
[Black "Baklan, Vladimir"]
[Result "1-0"]
[ECO "A17"]
[WhiteElo "2633"]
[BlackElo "2531"]
[Annotator "TA"]
[PlyCount "117"]
[EventDate "2024.04.03"]
[EventType "swiss"]
[EventCountry "ESP"]
[SourceTitle "playchess.com"]
[Source "ChessBase"]
[SourceQuality "1"]
[TimeControl "40/5400+30:1800+30"]

{[%evp 53,117,65,78,81,81,25,77,77,131,132,131,133,132,114,141,129,130,50,179,134,133,133,137,133,135,114,163,158,220,217,217,200,258,245,377,409,428,416,403,377,500,307,255,254,293,348,354,252,469,474,460,466,462,475,29961,29958,29943,12793,29967,29967,29939,29941,5431,652,29997,29998]} 1. Nf3 {[%emt 0:00:04] Wahls,Matthias} Nf6 {[%emt 0:01:01]} 2. c4 {[%emt 0:00:10]} e6 {[%emt 0:00:29]} 3. Nc3 {[%emt 0:01:16]} b6 {[%emt 0:00:30]} 4. e4 {[%emt 0:02:01]} Bb7 {[%emt 0:00:05]} 5. d3 {[%emt 0:00:56]} d6 {[%emt 0:02:10]} 6. g3 {[%emt 0:00:39]} Be7 {[%emt 0:04:50]} 7. Bg2 {[%emt 0:00:27]} O-O {[%emt 0:00:10]} 8. O-O {[%emt 0:00:16]} c5 {[%emt 0:00:12] 8...c5 is better than 8...Nbd7.} 9. b3 {[%emt 0:00:41]} Nbd7 {[%emt 0:13:07] A17: English Opening: 1...Nf6 with ...Bb4.} 10. Bb2 {[%emt 0:03:29]} a6 {[%emt 0:05:36]} 11. Ne1 {[%emt 0:01:26]} Rb8 {[%emt 0:07:19]} 12. f4 {[%emt 0:02:50]} b5 {[%emt 0:03:11]} 13. g4 $146 {[%emt 0:08:20]} ({Predecessor:} 13. Nc2 Ba8 14. Qe2 Ne8 15. Nd1 a5 16. cxb5 Rxb5 17. Nc3 Rb8 18. Rad1 Qb6 {½-½ Kharitonov,A (2500)-Yudasin,L (2575) Lvov zt 1990}) 13... b4 {[%emt 0:06:22]} 14. Na4 {[%emt 0:07:02]} Ne8 {[%emt 0:03:10]} 15. a3 {[%emt 0:17:13]} bxa3 {[%emt 0:14:07]} 16. Rxa3 {[%emt 0:00:49]} d5 {[%emt 0:00:03]} 17. Nc3 {[%emt 0:05:45]} d4 {[%emt 0:00:24]} 18. Ne2 {[%emt 0:00:05]} e5 {[%emt 0:01:38]} 19. Nf3 {[%emt 0:03:23]} Bd6 {[%emt 0:06:43]} 20. f5 {[%emt 0:11:49]} h6 {[%emt 0:11:40]} 21. Bc1 {[%emt 0:01:18]} Be7 {[%emt 0:00:55]} 22. Qe1 {[%emt 0:02:51]} Nef6 {[%emt 0:00:04]} 23. Qg3 {[%emt 0:03:01]} Nh7 {[%emt 0:01:09]} 24. h4 {[%emt 0:00:32]} f6 {[%emt 0:00:03]} 25. Bh3 {[%emt 0:01:32]} Bc8 {[%emt 0:03:28]} 26. Bd2 {[%emt 0:01:31]} Rb7 {[%emt 0:01:31]} 27. Kh1 {[%emt 0:02:32]} (27. Rxa6 $6 Rxb3 28. Ra7 Qb6 $11 (28... Rxd3 $14)) 27... Qc7 {[%emt 0:03:21]} 28. Rg1 {[%emt 0:05:16]} ({Much worse is} 28. Rxa6 Rxb3 29. Ra2 Qd6 $14 (29... Rxd3 30. Nc1 $14)) 28... Qd6 {[%emt 0:00:34]} 29. Qg2 {[%emt 0:03:33]} (29. Bf1 $16) 29... Rf7 {[%emt 0:04:48]} (29... Nb8 $11 {remains equal.}) 30. Ng3 $16 {[%emt 0:00:29]} Kf8 {[%emt 0:01:27]} (30... Qb8 $142) 31. Nh5 $16 {[%emt 0:00:41]} Ke8 {[%emt 0:00:03]} 32. Qg3 {[%emt 0:03:15]} Bd8 {[%emt 0:01:02]} 33. Rg2 {[%emt 0:02:27]} Ra7 {[%emt 0:01:50]} 34. Kg1 {[%emt 0:01:37]} Rb7 {[%emt 0:00:15]} 35. Kf1 {[%emt 0:01:17]} (35. Kh2 $16) 35... a5 {[%emt 0:01:18]} ({Better is} 35... Qb8 $14) 36. Kg1 {[%emt 0:02:02]} ({Don't play} 36. Bxa5 $6 Bxa5 37. Rxa5 Rxb3 $14) 36... Ra7 {[%emt 0:01:09]} 37. Kh1 {[%emt 0:00:57]} Ra6 {[%emt 0:01:59]} 38. Rg1 {[%emt 0:00:33]} Ra7 {[%emt 0:00:48]} 39. Rga1 {[%emt 0:00:43]} Nb8 {[%emt 0:00:27]} (39... Bb7 $16 40. Bxa5 Bxa5) 40. Bxa5 $18 {[%emt 0:00:00]} Bxa5 {[%emt 0:00:00]} (40... Nd7 $16 41. b4 cxb4 42. Bxb4 Rxa3 43. Bxd6 (43. Bxa3 Qb6 $16) 43... Rxa1+ 44. Kh2 Rd1) 41. Rxa5 {[%emt 0:02:00]} Rxa5 {[%emt 0:04:19]} 42. Rxa5 {[%emt 0:00:08]} Qc7 {[%emt 0:00:03]} 43. Ra1 {[%emt 0:03:06]} Nd7 {[%emt 0:06:27]} (43... Kd8 {was worth a try.} 44. g5 hxg5 45. hxg5 Nf8) 44. g5 $18 {[%emt 0:03:04]} hxg5 {[%emt 0:02:52]} 45. hxg5 {[%emt 0:00:20]} Nhf8 {[%emt 0:00:11]} 46. b4 {[%emt 0:06:42]} cxb4 {[%emt 0:02:24]} 47. g6 {[%emt 0:00:54]} Re7 {[%emt 0:00:07]} 48. Nxd4 {[%emt 0:00:12]} Bb7 {[%emt 0:02:25]} 49. Nb5 {[%emt 0:01:26]} Qb6 {[%emt 0:00:17]} 50. Qg1 {[%emt 0:04:30]} Nc5 $2 {[%emt 0:06:49]} (50... Qxg1+ 51. Kxg1 Nc5 52. Nd6+ Kd7) 51. Nxf6+ $18 {[%emt 0:01:02]} gxf6 {[%emt 0:00:21]} 52. g7 {[%emt 0:00:07]} Rxg7 {[%emt 0:00:05]} 53. Qxg7 {[%emt 0:00:07]} b3 {[%emt 0:00:07]} (53... Ncd7 $18 54. Qg1 Qxg1+ 55. Kxg1 Kd8) 54. Nc7+ {[%emt 0:01:39]} Kd8 {[%emt 0:00:05]} 55. Ne6+ {[%emt 0:05:51]} ({Weaker is} 55. Qxf8+ Kxc7 56. Qf7+ Kb8 $11) 55... Nfxe6 {[%emt 0:03:31]} 56. fxe6 {[%emt 0:00:36]} Qd6 {[%emt 0:01:08]} 57. Qxf6+ {[%emt 0:05:01]} Kc7 {[%emt 0:00:34]} 58. e7 {[%emt 0:00:10]} Qxd3 {[%emt 0:00:09]} 59. e8=N+ {[%emt 0:00:11]} 1-0

[Event "3rd Sunway Formentera-A 2024"]
[Site "Formentera"]
[Date "2024.04.18"]
[Round "9.2"]
[White "Moussard, Jules"]
[Black "Ivanchuk, Vasyl"]
[Result "0-1"]
[ECO "B12"]
[WhiteElo "2610"]
[BlackElo "2611"]
[Annotator "TA"]
[PlyCount "128"]
[EventDate "2024.04.03"]
[EventType "swiss"]
[EventCountry "ESP"]
[SourceTitle "playchess.com"]
[Source "ChessBase"]
[SourceQuality "1"]
[TimeControl "40/5400+30:1800+30"]

{[%evp 57,128,-50,-41,-74,-75,-92,-37,-89,-47,-93,-101,-95,-90,-83,-83,-116,-92,-90,-90,-261,-258,-272,-268,-270,-283,-286,-256,-328,-297,-371,-319,-374,-393,-404,-388,-546,-462,-449,-339,-356,-327,-340,-333,-338,-263,-287,-291,-317,-253,-370,-310,-418,-405,-380,-364,-495,-522,-651,-626,-783,-772,-923,-931,-903,-877,-6673,-6755,-29990,-29991,-29991,-29992,-29992,-29993]} 1. e4 {[%emt 0:00:40]} c6 {[%emt 0:00:05]} 2. d4 {[%emt 0:09:27]} d5 {[%emt 0:00:17]} 3. e5 {[%emt 0:00:33]} Bf5 {[%emt 0:00:09]} 4. Nf3 {[%emt 0:03:37]} e6 {[%emt 0:00:21]} 5. Be2 {[%emt 0:00:25]} c5 {[%emt 0:00:07]} 6. c3 {[%emt 0:01:40]} Nc6 {[%emt 0:01:59]} 7. Be3 {[%emt 0:00:14] B12: Caro-Kann: Advance Variation.} Qb6 {[%emt 0:28:27]} 8. Qd2 {[%emt 0:14:35]} Rd8 $146 {[%emt 0:06:54]} ({Predecessor:} 8... cxd4 9. Nxd4 Nxd4 10. Bxd4 Bc5 11. Na3 a6 12. Bxc5 Qxc5 13. b4 Qc7 14. c4 Qxe5 {0-1 Moussard,J (2656)-Deac,B (2702) ESP-chT Rapid 2023 (3.1)}) 9. O-O {[%emt 0:01:22]} h6 {[%emt 0:00:16]} 10. Qc1 {[%emt 0:12:59]} Bg4 {[%emt 0:14:10]} 11. Nbd2 {[%emt 0:05:38]} cxd4 {[%emt 0:00:24]} 12. cxd4 {[%emt 0:09:10]} Nge7 {[%emt 0:00:22]} 13. h3 {[%emt 0:03:25]} Bh5 {[%emt 0:01:09]} 14. g4 {[%emt 0:12:19]} Bg6 {[%emt 0:00:09]} 15. Qc3 {[%emt 0:00:09]} Nb4 {[%emt 0:15:26]} 16. Ne1 {[%emt 0:02:26]} h5 {[%emt 0:11:01]} 17. Nb3 {[%emt 0:04:26]} hxg4 {[%emt 0:01:07]} 18. hxg4 {[%emt 0:00:06]} Rc8 {[%emt 0:05:23]} 19. Nc5 {[%emt 0:00:37]} Nec6 {[%emt 0:00:01]} 20. a3 {[%emt 0:06:15]} Qd8 {[%emt 0:05:12]} 21. g5 {[%emt 0:00:24]} Bxc5 {[%emt 0:05:58]} 22. Qxc5 {[%emt 0:00:45]} Na6 {[%emt 0:00:03]} 23. Qb5 {[%emt 0:03:06]} Qb6 {[%emt 0:00:01]} 24. Qxb6 {[%emt 0:02:49]} axb6 {[%emt 0:00:01]} 25. Rc1 {[%emt 0:00:47]} Kd7 {[%emt 0:02:09]} 26. Ng2 {[%emt 0:01:18]} Na5 {[%emt 0:00:34]} 27. Nf4 {[%emt 0:01:03]} Bf5 {[%emt 0:01:30]} 28. Nh5 {[%emt 0:03:33]} Nc4 {[%emt 0:00:21]} 29. Ng3 {[%emt 0:00:36]} (29. Nxg7 Bg6 30. b3 Nxe3 31. fxe3 Rxc1 32. Rxc1 $17) (29. b3 $11) 29... Bg6 $15 {[%emt 0:00:31]} 30. Rc3 {[%emt 0:00:14]} Nxb2 {[%emt 0:00:36]} 31. Rb3 {[%emt 0:00:42]} Rc2 {[%emt 0:00:27]} (31... Nc4 $17 32. Bxc4 dxc4 33. Rxb6 Kc7) 32. Bb5+ {[%emt 0:00:37]} ({White should play} 32. Rxb6 $15 Kc7 33. Rb5) 32... Kc7 {[%emt 0:00:38]} 33. Rc1 {[%emt 0:00:23]} (33. Rb1 $15 Nc4 34. Bxc4 Rxc4 35. R1b2) 33... Rxc1+ $17 {[%emt 0:00:06]} 34. Bxc1 {[%emt 0:00:01]} Nc4 {[%emt 0:00:06]} 35. Rc3 {[%emt 0:00:09]} Kb8 {[%emt 0:00:46]} 36. Nf1 {[%emt 0:00:55]} (36. Bxc4 $2 Rc8 37. f4 (37. Bxa6 $2 Rxc3 38. Bd2 Rc2 $19) 37... Rxc4 38. Rxc4 dxc4 $19) 36... Rh4 {[%emt 0:01:00]} 37. f4 {[%emt 0:00:36]} Nc7 {[%emt 0:00:29]} 38. Ba4 $2 {[%emt 0:00:49]} (38. a4 $17) 38... b5 $19 {[%emt 0:00:28]} 39. Bd1 {[%emt 0:00:03] [#]} b4 $1 {[%emt 0:00:31]} 40. axb4 {[%emt 0:00:00]} Nb5 {[%emt 0:00:00]} 41. Rg3 {[%emt 0:01:29]} Nxd4 {[%emt 0:10:27]} 42. Nh2 {[%emt 0:00:53]} Be4 {[%emt 0:08:40]} 43. Nf1 {[%emt 0:01:27]} g6 {[%emt 0:05:22]} 44. Kf2 {[%emt 0:00:30]} b5 {[%emt 0:01:24]} 45. Be2 {[%emt 0:01:04]} Kb7 {[%emt 0:00:29]} 46. Bd3 {[%emt 0:00:58]} (46. Rc3 $142) 46... Bxd3 {[%emt 0:04:23]} 47. Rxd3 {[%emt 0:00:02]} Nc6 {[%emt 0:00:08]} 48. Kg3 {[%emt 0:01:04]} Rh8 {[%emt 0:00:17]} ({Inferior is} 48... Nxb4 49. Rb3 Rh1 50. Kg2 (50. Rxb4 $2 {loses.} Rxf1 51. Rxb5+ Kc6 $19) 50... Rxf1 51. Kxf1 $11) 49. Be3 {[%emt 0:00:24]} d4 {[%emt 0:03:05]} (49... Nxb4 $2 50. Rb3 Nc2 51. Kg2 $19) 50. Bf2 {[%emt 0:00:13]} Ka6 {[%emt 0:00:50]} 51. Be1 {[%emt 0:02:11]} Ra8 {[%emt 0:01:04]} 52. Nh2 {[%emt 0:02:07]} Ne3 {[%emt 0:00:19]} 53. Nf3 {[%emt 0:05:04]} (53. Ng4 {was necessary.} Nc2 54. Bd2) 53... Nc2 {[%emt 0:00:30]} 54. Bd2 {[%emt 0:01:53]} Kb6 {[%emt 0:00:16]} ({And not} 54... N6xb4 55. Bxb4 Nxb4 56. Ra3+ Kb7 57. Rxa8 Kxa8 58. Nxd4 $11) 55. Rb3 {[%emt 0:01:12]} Ra2 {[%emt 0:00:24]} 56. Rb1 {[%emt 0:00:46]} Ne7 {[%emt 0:00:44]} 57. Rh1 {[%emt 0:01:31]} Nf5+ {[%emt 0:00:15]} 58. Kf2 {[%emt 0:00:01]} Nxb4 {[%emt 0:00:25]} 59. Rh7 {[%emt 0:00:03]} Nd3+ {[%emt 0:00:25]} 60. Ke2 {[%emt 0:01:51]} Nxf4+ {[%emt 0:00:03]} 61. Kd1 {[%emt 0:00:02]} Ne3+ {[%emt 0:00:41]} 62. Ke1 {[%emt 0:00:08]} Ra1+ {[%emt 0:00:30]} 63. Kf2 {[%emt 0:00:03]} Rf1+ {[%emt 0:00:12]} 64. Kg3 {[%emt 0:00:01]} Ne2+ {[%emt 0:00:12]} 0-1

[Event "3rd Sunway Formentera-A 2024"]
[Site "Formentera"]
[Date "2024.04.18"]
[Round "9.3"]
[White "Raja Rithvik R"]
[Black "Pranav, V."]
[Result "0-1"]
[ECO "E15"]
[WhiteElo "2532"]
[BlackElo "2604"]
[Annotator "TA"]
[PlyCount "74"]
[EventDate "2024.04.03"]
[EventType "swiss"]
[EventCountry "ESP"]
[SourceTitle "playchess.com"]
[Source "ChessBase"]
[SourceQuality "1"]
[TimeControl "40/5400+30:1800+30"]

{[%evp 13,74,16,27,-2,-2,13,40,49,29,-40,-38,-39,-35,-43,-38,-54,-38,-36,-35,-36,-19,-23,-9,-27,0,-53,-44,-51,-37,-45,-42,-86,-81,-99,-70,-102,-76,-117,-113,-131,-123,-139,-112,-122,-99,-106,-113,-167,-159,-205,-195,-243,-231,-362,-309,-1087,-1035,-1114,-1083,-3533,-2870,-2531,-2286]} 1. d4 {[%emt 0:02:24]} Nf6 {[%emt 0:00:11]} 2. c4 {[%emt 0:00:04]} e6 {[%emt 0:00:09]} 3. Nf3 {[%emt 0:00:04]} b6 {[%emt 0:00:14]} 4. g3 {[%emt 0:00:12]} Ba6 {[%emt 0:00:09]} 5. Nbd2 {[%emt 0:00:07]} Bb4 {[%emt 0:01:02]} 6. Qc2 {[%emt 0:00:13]} c5 {[%emt 0:01:11]} 7. Bg2 {[%emt 0:01:01]} Bb7 {[%emt 0:00:49]} 8. d5 {[%emt 0:01:42]} exd5 {[%emt 0:02:48]} 9. Nh4 {[%emt 0:01:47]} Bc6 {[%emt 0:05:05]} 10. cxd5 {[%emt 0:01:43] White is slightly better.} Nxd5 {[%emt 0:00:19][%cal Od5f4]} 11. Nf5 {[%emt 0:08:43]} (11. O-O $11) 11... O-O $15 {[%emt 0:06:46]} 12. O-O {[%emt 0:01:28]} Bxd2 {[%emt 0:02:07]} 13. Bxd2 {[%emt 0:02:11]} Ne7 {[%emt 0:02:07]} 14. Nxe7+ {[%emt 0:01:25]} Qxe7 {[%emt 0:02:49]} 15. e4 {[%emt 0:00:07]} d6 {[%emt 0:06:35]} 16. Rad1 {[%emt 0:01:47]} Nd7 {[%emt 0:01:13]} 17. Bc3 {[%emt 0:00:12]} Rfe8 {[%emt 0:06:27]} 18. Rfe1 {[%emt 0:15:14]} Nf8 {[%emt 0:00:47][%cal Bd7f8,Bf8g6,Bg6e5,Be5f7,Bf7g5][%mdl 32]} 19. Re3 {[%emt 0:05:19]} ({White should try} 19. f4 $11) 19... Rad8 {[%emt 0:01:16]} 20. Qe2 {[%emt 0:00:13]} Qb7 {[%emt 0:06:00]} 21. Qg4 {[%emt 0:12:44][%csl Gc3][%cal Rg4g7] [#]} Ng6 {[%emt 0:00:16]} 22. h4 {[%emt 0:07:51]} Ne5 {[%emt 0:01:45]} 23. Qf4 {[%emt 0:00:12]} f6 {[%emt 0:05:15]} 24. b3 {[%emt 0:05:44]} Qc8 {[%emt 0:05:11]} 25. h5 {[%emt 0:04:03]} h6 {[%emt 0:04:45]} 26. Qh4 {[%emt 0:02:53]} Nf7 {[%emt 0:01:40]} 27. Qf4 {[%emt 0:05:14]} Re7 {[%emt 0:02:14]} 28. Red3 {[%emt 0:03:06]} Qe6 {[%emt 0:06:25]} 29. R3d2 {[%emt 0:01:39]} Red7 {[%emt 0:01:29]} (29... Bxe4 $6 30. Re2 f5 (30... d5 31. f3 $11) 31. f3 $11) 30. Qe3 {[%emt 0:10:48]} (30. g4 $17) 30... Ng5 $19 {[%emt 0:03:12][%cal Od8e8]} 31. Re1 {[%emt 0:00:18]} (31. b4 $17) 31... Re7 {[%emt 0:01:27][%cal Oe6f7]} 32. Qd3 {[%emt 0:05:25]} (32. Rde2 $142) 32... f5 {[%emt 0:04:03][%cal Rf5e4]} (32... Nxe4 $2 {too greedy.} 33. Rde2 Qf5 34. Bxe4 (34. Rxe4 Kf8 $18) 34... Bxe4 35. Rxe4 $18) (32... Bxe4 33. Bxe4 Nxe4 34. Rde2 $16 (34. f3 Nxd2 35. Rxe6 Nxf3+ 36. Qxf3 Rxe6 $16)) 33. Qf1 {[%emt 0:00:34]} (33. e5 $142 Be4 34. Qe2 Bxg2 35. Kxg2) 33... Qf7 {[%emt 0:00:57][%cal Rf5e4]} ({Less strong is} 33... Bxe4 34. f3 $17) 34. exf5 $2 {[%emt 0:00:28] [#]} (34. e5 Bxg2 35. Qxg2) 34... Rxe1 {[%emt 0:00:52] Black is clearly winning.} 35. Qxe1 {[%emt 0:00:02]} Bxg2 {[%emt 0:00:08]} 36. Kxg2 {[%emt 0:00:01]} Qb7+ {[%emt 0:01:23]} 37. f3 {[%emt 0:00:29]} Qxf3+ {[%emt 0:19:54] Weighted Error Value: White=0.57/Black=0.11 (very precise) .  Mistake:       	White=7     	---        Inaccurate:     	White=3     	Black=2      OK:         	White=8     	Black=7      Best:        	White=1     	Black=4} 0-1